bitfinex-derivatives/quotes_BTCF0:USTF0_20241120
["timestamp","ask_amount","ask_price","bid_price","bid_amount"]
[1732109271771,0.05305,94161.0,94160.0,0.05305]
[1732109272462,0.05305,94161.0,94160.0,0.07428168]
[1732109272664,0.053047,94166.0,94163.0,0.053048]
[1732109272871,0.053042,94175.0,94163.0,0.053048]
[1732109273071,0.053042,94175.0,94160.0,0.02123168]
[1732109273072,0.3608,94168.0,94160.0,0.07428168]
[1732109273259,0.053049,94162.0,94161.0,0.05305]
[1732109274070,0.05305,94161.0,94160.0,0.01518879]
[1732109274272,0.053057,94148.0,94147.0,0.0049]
[1732109274568,0.32058717,94162.0,94139.0,0.24115626]
[1732109274569,0.053058,94146.0,94139.0,0.24115626]
[1732109274773,0.51530717,94149.0,94141.0,0.053061]
[1732109274971,0.3608,94149.0,94141.0,0.053061]
[1732109275268,0.3608,94164.0,94145.0,0.01556544]
[1732109275470,0.3608,94164.0,94146.0,0.053058]
[1732109275471,0.053053,94155.0,94146.0,0.053058]
[1732109275771,0.053054,94154.0,94146.0,0.053058]
[1732109277085,1.5,94163.0,94146.0,0.3608]
[1732109277366,1.5,94163.0,94154.0,0.413853]
[1732109277367,0.053049,94163.0,94154.0,0.413853]
[1732109277873,1.50060001,94169.0,94154.0,0.413853]
[1732109278062,0.053049,94163.0,94150.0,0.18809426]
[1732109278264,0.053049,94163.0,94151.0,0.053055]
[1732109278969,1.5,94178.0,94159.0,0.3608]
[1732109279186,0.053045,94169.0,94159.0,0.3608]
[1732109279467,0.15450717,94179.0,94159.0,0.3608]
[1732109279774,0.15450717,94179.0,94162.0,0.18809426]
[1732109279961,0.15450717,94179.0,94161.0,0.18809426]
[1732109280161,0.05305,94160.0,94159.0,0.18809426]
[1732109280365,0.053055,94152.0,94150.0,0.18809426]
[1732109280672,0.053055,94152.0,94141.0,0.18809426]
[1732109280673,0.053057,94147.0,94141.0,0.18809426]
[1732109280865,0.053057,94147.0,94136.0,0.609992]
[1732109280866,0.053057,94147.0,94136.0,0.3608]
[1732109281775,0.3608,94168.0,94145.0,0.3609342]
[1732109281968,0.05305,94160.0,94146.0,0.07745312]
[1732109282164,0.053048,94164.0,94156.0,0.3158]
[1732109282468,0.053049,94162.0,94156.0,0.3158]
[1732109283072,0.36239358,94172.0,94156.0,0.3158]
[1732109283280,0.053048,94165.0,94156.0,0.3158]
[1732109283772,0.053048,94165.0,94156.0,0.368852]
[1732109284468,0.36239358,94172.0,94160.0,0.05305]
[1732109284469,0.41543758,94172.0,94160.0,0.05305]
[1732109284663,0.41543758,94172.0,94156.0,0.3158]
[1732109284664,0.36239358,94172.0,94156.0,0.3158]
[1732109284865,0.00159358,94172.0,94171.0,0.3608]
[1732109285366,0.15450717,94196.0,94171.0,0.3608]
[1732109285367,0.053032,94193.0,94171.0,0.67936]
[1732109285569,0.053032,94193.0,94172.0,0.0668]
[1732109285774,0.053032,94193.0,94187.0,0.3608]
[1732109286092,0.3608,94202.0,94187.0,0.3608]
[1732109286385,0.053034,94189.0,94187.0,0.3608]
[1732109286762,0.053031,94195.0,94187.0,0.3608]
[1732109287369,0.3608,94202.0,94187.0,0.3608]
[1732109287569,0.3608,94202.0,94180.0,0.122539]
[1732109287570,0.3608,94192.0,94180.0,0.0695]
[1732109287781,0.053038,94182.0,94180.0,0.0158008]
[1732109287962,0.053038,94182.0,94170.0,0.3608]
[1732109287963,0.053038,94182.0,94172.0,0.1335]
[1732109288169,0.053038,94182.0,94175.0,0.053041]
[1732109290474,0.053041,94177.0,94171.0,0.02122246]
[1732109291377,0.3608,94184.0,94171.0,0.02122246]
[1732109291378,0.413837,94184.0,94171.0,0.02122246]
[1732109291579,0.3608,94184.0,94171.0,0.02122246]
[1732109292269,0.3608,94184.0,94181.0,0.053038]
[1732109292465,0.3608,94192.0,94178.0,0.3608]
[1732109292672,0.3608,94203.0,94187.0,0.053034]
[1732109292871,0.3608,94203.0,94187.0,0.413834]
[1732109293072,0.3608,94203.0,94193.0,0.053031]
[1732109293073,0.15462125,94200.0,94193.0,0.053031]
[1732109293266,0.10159325,94200.0,94193.0,0.053031]
[1732109293578,0.053029,94198.0,94193.0,0.053031]
[1732109294779,0.053029,94197.0,94193.0,0.053031]
[1732109296768,0.053031,94194.0,94189.0,0.053034]
[1732109296970,0.3608,94192.0,94171.0,0.20931672]
[1732109297170,0.053036,94186.0,94171.0,0.02122246]
[1732109297776,0.3608,94190.0,94171.0,0.02122246]
[1732109297980,0.3608,94190.0,94177.0,0.05304]
[1732109297981,0.053037,94184.0,94177.0,0.05304]
[1732109298480,0.053037,94184.0,94178.0,0.05304]
[1732109298868,0.3608,94190.0,94171.0,0.02122246]
[1732109299089,0.053043,94172.0,94171.0,0.02122246]
[1732109299878,0.3608,94176.0,94167.0,0.01657639]
[1732109300075,0.053046,94168.0,94167.0,0.01569639]
[1732109300291,0.053046,94168.0,94164.0,0.0695]
[1732109300472,0.053047,94167.0,94163.0,0.053048]
[1732109300668,0.053048,94164.0,94159.0,0.02123125]
[1732109300871,0.3608,94177.0,94159.0,0.02123125]
[1732109301680,0.053045,94170.0,94159.0,0.02123125]
[1732109301977,0.3608,94177.0,94160.0,0.05305]
[1732109302180,0.3608,94177.0,94173.0,0.053043]
[1732109302382,0.05304,94178.0,94170.0,0.3608]
[1732109302681,0.431,94186.0,94170.0,0.3608]
[1732109302978,0.431,94186.0,94181.0,0.053038]
[1732109302979,0.053037,94183.0,94181.0,0.053038]
[1732109303180,0.3608,94186.0,94170.0,0.3608]
[1732109303375,0.053043,94173.0,94170.0,0.413844]
[1732109305173,0.15450717,94177.0,94165.0,0.18809426]
[1732109305481,0.3608,94186.0,94165.0,0.18809426]
[1732109305482,0.3608,94186.0,94171.0,0.053044]
[1732109305868,0.3608,94186.0,94172.0,0.053043]
[1732109306374,0.3608,94186.0,94180.0,0.053039]
[1732109306575,0.053036,94186.0,94183.0,0.053037]
[1732109307280,0.3608,94190.0,94179.0,0.053039]
[1732109307491,0.053037,94184.0,94179.0,0.053039]
[1732109307670,0.3608,94190.0,94179.0,0.053039]
[1732109308083,0.3608,94190.0,94176.0,0.3608]
[1732109308382,0.3608,94190.0,94176.0,0.54889426]
[1732109308383,0.053041,94177.0,94176.0,0.54889426]
[1732109308588,0.053041,94177.0,94176.0,0.54866884]
[1732109308778,0.053041,94177.0,94176.0,0.3608]
[1732109308984,0.053041,94177.0,94171.0,0.18787716]
[1732109308985,0.053043,94172.0,94171.0,0.18787716]
[1732109309183,0.413841,94177.0,94158.0,0.31639]
[1732109309184,0.414481,94177.0,94163.0,0.18787716]
[1732109309375,0.053041,94176.0,94163.0,0.1879356]
[1732109309579,0.053041,94176.0,94162.0,0.2409846]
[1732109310176,0.053041,94176.0,94163.0,0.1879356]
[1732109310371,0.053041,94176.0,94163.0,0.2409836]
[1732109310580,0.053047,94166.0,94163.0,0.2409836]
[1732109311087,0.053048,94165.0,94161.0,0.1879356]
[1732109311277,0.3608,94177.0,94171.0,0.053044]
[1732109311584,0.053032,94193.0,94172.0,0.053043]
[1732109311585,0.053042,94176.0,94172.0,0.053043]
[1732109311788,0.053042,94176.0,94173.0,0.053042]
[1732109312282,0.3608,94180.0,94167.0,0.1879356]
[1732109312488,0.3608,94190.0,94170.0,0.1879356]
[1732109312783,0.053031,94195.0,94166.0,0.609992]
[1732109312784,0.053037,94184.0,94182.0,0.053037]
[1732109313288,0.3608,94185.0,94182.0,0.053037]
[1732109313673,0.3608,94189.0,94182.0,0.053037]
[1732109313878,0.3608,94189.0,94176.0,0.36168]
[1732109314084,0.053038,94183.0,94180.0,0.053039]
[1732109314286,0.05304,94179.0,94178.0,0.1879356]
[1732109314482,0.05304,94179.0,94172.0,0.249192]
[1732109314483,0.053041,94177.0,94176.0,0.1879356]
[1732109314873,0.053038,94182.0,94176.0,0.1879356]
[1732109315084,0.3608,94184.0,94177.0,0.1879356]
[1732109315289,0.3608,94184.0,94181.0,0.053038]
[1732109315587,0.3608,94184.0,94178.0,0.1879356]
[1732109315786,0.053039,94180.0,94178.0,0.2409756]
[1732109315976,0.053039,94179.0,94178.0,0.2409756]
[1732109316376,0.053039,94179.0,94178.0,0.1879356]
[1732109316779,0.053039,94179.0,94178.0,0.01761441]
[1732109316984,0.3608,94184.0,94166.0,0.3608]
[1732109316985,0.3608,94184.0,94175.0,0.1879356]
[1732109317177,0.053042,94175.0,94174.0,0.1879356]
[1732109317788,0.3608,94184.0,94183.0,0.053037]
[1732109317983,0.413837,94184.0,94183.0,0.053037]
[1732109319079,0.3608,94184.0,94183.0,0.053037]
[1732109319706,0.053032,94192.0,94188.0,0.053034]
[1732109319991,0.43116001,94199.0,94187.0,0.053035]
[1732109319992,0.3608,94189.0,94187.0,0.053035]
[1732109320187,0.3608,94189.0,94188.0,0.053034]
[1732109320382,0.053033,94190.0,94188.0,0.053034]
[1732109320580,0.413833,94190.0,94188.0,0.053034]
[1732109320783,0.413833,94190.0,94189.0,0.053034]
[1732109320984,0.3608,94190.0,94189.0,0.053034]
[1732109321295,0.43116001,94199.0,94175.0,0.1879356]
[1732109321483,0.43116001,94199.0,94189.0,0.053033]
[1732109321484,0.053032,94193.0,94189.0,0.053033]
[1732109321683,0.053032,94193.0,94176.0,0.1928356]
[1732109321881,0.053032,94193.0,94190.0,0.053033]
[1732109322184,0.053032,94193.0,94174.0,0.4282]
[1732109322185,0.4306,94199.0,94177.0,0.1879356]
[1732109322505,0.053032,94193.0,94178.0,0.1879356]
[1732109322693,0.053032,94193.0,94177.0,0.05304]
[1732109322694,0.43116001,94199.0,94190.0,0.053033]
[1732109322883,0.053033,94191.0,94190.0,0.053033]
[1732109323394,0.3608,94199.0,94178.0,0.1879356]
[1732109323580,0.3608,94199.0,94183.0,0.3608]
[1732109323777,0.3608,94199.0,94196.0,0.053029]
[1732109323980,0.3608,94199.0,94183.0,0.3608]
[1732109324282,0.10159325,94200.0,94199.0,0.053028]
[1732109326984,0.1,94200.0,94199.0,0.053028]
[1732109327188,0.1,94200.0,94199.0,0.18806633]
[1732109327492,0.1,94200.0,94199.0,0.053028]
[1732109328089,0.1,94200.0,94199.0,0.24109433]
[1732109328279,0.1,94200.0,94199.0,0.053028]
[1732109330086,0.1,94200.0,94199.0,0.120328]
[1732109330480,0.1,94200.0,94199.0,0.438808]
[1732109330680,0.10096183,94224.0,94199.0,0.438808]
[1732109330681,0.10096183,94224.0,94199.0,0.38578]
[1732109330896,0.053015,94223.0,94212.0,0.3608]
[1732109331190,0.0689,94228.0,94210.0,0.10096183]
[1732109331191,0.3608,94218.0,94210.0,0.10096183]
[1732109331394,0.3608,94218.0,94217.0,0.053018]
[1732109332782,0.053016,94221.0,94211.0,0.3608]
[1732109332988,0.05301,94231.0,94228.0,0.053012]
[1732109333186,0.413808,94236.0,94225.0,0.10096183]
[1732109333386,0.413808,94236.0,94231.0,0.05301]
[1732109333594,0.3608,94246.0,94235.0,0.10096183]
[1732109333893,0.053001,94247.0,94236.0,0.053007]
[1732109334294,0.3608,94249.0,94236.0,0.053007]
[1732109334295,0.053002,94246.0,94236.0,0.053007]
[1732109334788,0.3608,94249.0,94236.0,0.053007]
[1732109335390,0.3608,94249.0,94236.0,0.198967]
[1732109336887,0.3608,94249.0,94236.0,0.21704508]
[1732109337194,0.053,94250.0,94236.0,0.21704508]
[1732109337510,0.053,94250.0,94236.0,0.57784508]
[1732109338497,0.053,94249.0,94236.0,0.57784508]
[1732109339583,0.052997,94254.0,94236.0,0.57784508]
[1732109339795,0.052998,94253.0,94236.0,0.57784508]
[1732109340001,1.5,94256.0,94236.0,0.57784508]
[1732109340696,0.3608,94258.0,94236.0,0.57784508]
[1732109341197,1.8608,94258.0,94236.0,0.57784508]
[1732109341502,0.10096183,94245.0,94236.0,0.37887808]
[1732109341685,0.05459943,94237.0,94236.0,0.37887808]
[1732109342093,1.55459943,94237.0,94236.0,0.33387808]
[1732109343788,1.55459943,94237.0,94236.0,0.35134897]
[1732109343988,0.053017,94219.0,94218.0,0.0049]
[1732109344196,0.053017,94219.0,94205.0,0.10096183]
[1732109344197,0.05302,94214.0,94211.0,0.053021]
[1732109344395,0.05302,94214.0,94213.0,0.0531341]
[1732109344595,0.05301,94232.0,94213.0,0.3609141]
[1732109344798,0.3608,94223.0,94213.0,0.37879794]
[1732109345013,0.05301,94232.0,94213.0,0.37879794]
[1732109345299,0.053019,94216.0,94213.0,0.37879794]
[1732109345615,0.053016,94221.0,94213.0,0.37879794]
[1732109345904,0.05302,94214.0,94213.0,0.37879794]
[1732109346090,0.05302,94214.0,94213.0,0.01799794]
[1732109347089,0.053015,94223.0,94213.0,0.47975977]
[1732109347288,0.193607,94236.0,94222.0,0.10096183]
[1732109347289,0.1406,94236.0,94222.0,0.10096183]
[1732109347488,0.068,94236.0,94234.0,0.053008]
[1732109347691,0.068,94236.0,94223.0,0.3608]
[1732109347901,0.053008,94234.0,94230.0,0.053011]
[1732109348096,0.068,94236.0,94229.0,0.053011]
[1732109348295,0.053012,94229.0,94224.0,0.053014]
[1732109348601,0.053012,94229.0,94227.0,0.053012]
[1732109349402,0.053012,94228.0,94227.0,0.053012]
[1732109349900,0.068,94236.0,94215.0,0.10096183]
[1732109350404,0.00159243,94237.0,94224.0,0.10096183]
[1732109350606,0.00159243,94237.0,94221.0,0.3608]
[1732109350607,0.00159243,94237.0,94236.0,0.053007]
[1732109351295,0.00159243,94237.0,94231.0,0.3608]
[1732109351599,0.00159243,94237.0,94236.0,0.053007]
[1732109353202,0.10096183,94269.0,94238.0,0.053006]
[1732109353203,0.053,94250.0,94238.0,0.053006]
[1732109353393,0.053,94250.0,94238.0,0.10096183]
[1732109353610,0.052998,94253.0,94238.0,0.10096183]
[1732109353801,0.0725,94260.0,94249.0,0.053]
[1732109354099,0.052999,94251.0,94249.0,0.053]
[1732109354299,0.052999,94251.0,94238.0,0.10096183]
[1732109354300,0.052997,94256.0,94251.0,0.052998]
[1732109354505,0.052997,94256.0,94240.0,0.053005]
[1732109354801,0.3608,94279.0,94272.0,0.052987]
[1732109354998,0.00064,94277.0,94265.0,0.10096183]
[1732109355193,0.052983,94279.0,94265.0,0.10096183]
[1732109355415,1.5,94289.0,94259.0,0.3608]
[1732109355704,0.3608,94271.0,94259.0,0.3608]
[1732109356206,0.052996,94256.0,94252.0,0.0049]
[1732109356398,0.052996,94256.0,94251.0,0.052999]
[1732109356399,0.052997,94255.0,94251.0,0.052999]
[1732109356596,0.052997,94255.0,94252.0,0.052998]
[1732109356903,0.10096183,94264.0,94253.0,0.052998]
[1732109356904,0.3608,94262.0,94253.0,0.052998]
[1732109357108,0.052997,94256.0,94250.0,0.0212125]
[1732109357299,0.052998,94253.0,94250.0,0.0212125]
[1732109357503,0.052998,94254.0,94253.0,0.052998]
[1732109357997,0.052998,94254.0,94241.0,0.37863058]
[1732109357998,0.67908,94254.0,94241.0,0.37863058]
[1732109358198,0.053007,94237.0,94236.0,0.053007]
[1732109358399,0.053009,94234.0,94221.0,0.053015]
[1732109358599,0.3608,94244.0,94229.0,0.39968247]
[1732109358805,0.3608,94244.0,94238.0,0.053006]
[1732109358806,0.053006,94239.0,94238.0,0.053006]
[1732109359606,1.5,94243.0,94242.0,0.053004]
[1732109359904,0.0712,94260.0,94239.0,0.10096183]
[1732109360107,0.052996,94256.0,94241.0,0.053004]
[1732109360313,0.052996,94256.0,94240.0,0.1451]
[1732109360314,1.8608,94263.0,94240.0,0.1451]
[1732109360805,0.052997,94255.0,94251.0,0.052999]
[1732109360994,0.413797,94255.0,94251.0,0.052999]
[1732109361194,0.3608,94255.0,94251.0,0.052999]
[1732109361503,0.052994,94260.0,94256.0,0.052996]
[1732109361702,1.8608,94263.0,94256.0,0.052996]
[1732109362007,0.052995,94258.0,94257.0,0.052996]
[1732109362199,1.8608,94263.0,94247.0,0.053001]
[1732109362508,0.052994,94261.0,94259.0,0.052994]
[1732109362911,0.052991,94265.0,94260.0,0.052993]
[1732109363207,0.052991,94265.0,94262.0,0.052993]
[1732109363793,0.3608,94268.0,94254.0,0.3608]
[1732109364009,0.3608,94268.0,94262.0,0.052993]
[1732109364194,0.052991,94265.0,94262.0,0.052993]
[1732109365198,0.14623175,94282.0,94267.0,0.05299]
[1732109365403,0.052988,94271.0,94257.0,0.10096183]
[1732109365999,0.00159175,94282.0,94257.0,0.10096183]
[1732109366000,0.00159175,94282.0,94271.0,0.052987]
[1732109366200,0.052987,94273.0,94268.0,0.052989]
[1732109366507,0.052987,94273.0,94262.0,0.3608]
[1732109366900,0.00159175,94282.0,94262.0,0.3608]
[1732109366901,0.052985,94277.0,94275.0,0.052985]
[1732109367099,0.413785,94276.0,94272.0,0.052987]
[1732109367299,0.05299,94268.0,94263.0,0.052992]
[1732109367502,0.05299,94267.0,94263.0,0.052992]
[1732109368412,0.052994,94260.0,94254.0,0.5241121]
[1732109368714,0.052995,94259.0,94254.0,0.1624321]
[1732109369308,0.052996,94257.0,94256.0,0.052996]
[1732109369505,0.052996,94257.0,94254.0,0.0177921]
[1732109369810,0.052992,94264.0,94254.0,0.3608]
[1732109370110,0.3608,94266.0,94254.0,0.3608]
[1732109370411,0.052993,94262.0,94255.0,0.052996]
[1732109370608,1.8608,94266.0,94254.0,0.3608]
[1732109370911,0.052996,94256.0,94254.0,0.413797]
[1732109371110,1.5,94266.0,94254.0,0.3608]
[1732109371111,0.052997,94255.0,94254.0,0.3608]
[1732109371912,0.052994,94260.0,94254.0,0.3608]
[1732109372099,0.052996,94256.0,94246.0,0.38263024]
[1732109372310,0.3608,94257.0,94246.0,0.33763024]
[1732109372513,0.10096183,94261.0,94246.0,0.33763024]
[1732109372812,0.10096183,94261.0,94253.0,0.052997]
[1732109372813,0.052996,94257.0,94253.0,0.052997]
[1732109373205,0.052996,94257.0,94246.0,0.33763024]
[1732109373516,1.5,94268.0,94247.0,0.053001]
[1732109373720,0.3608,94271.0,94255.0,0.3608]
[1732109374106,0.052993,94262.0,94255.0,0.3608]
[1732109374410,0.05299,94267.0,94261.0,0.052993]
[1732109374609,0.10096183,94270.0,94261.0,0.052993]
[1732109375603,0.10096183,94270.0,94255.0,0.3608]
[1732109375604,0.052991,94266.0,94262.0,0.052992]
[1732109376104,0.052991,94266.0,94255.0,0.3608]
[1732109376105,0.10096183,94270.0,94269.0,0.052989]
[1732109376503,0.3608,94271.0,94269.0,0.052989]
[1732109376712,0.3608,94271.0,94270.0,0.052988]
[1732109377209,0.3608,94279.0,94272.0,0.052987]
[1732109377417,0.3608,94279.0,94257.0,0.10096183]
[1732109377418,0.3608,94279.0,94276.0,0.052985]
[1732109377602,0.3608,94279.0,94277.0,0.052984]
[1732109378301,0.3608,94279.0,94278.0,0.052984]
[1732109378814,0.36239175,94282.0,94281.0,0.052982]
[1732109379009,0.00159175,94282.0,94281.0,0.052982]
[1732109380427,0.00159175,94282.0,94277.0,0.052984]
[1732109380716,0.00159175,94282.0,94269.0,0.3608]
[1732109381111,0.052982,94281.0,94270.0,0.052988]
[1732109381718,0.00159175,94282.0,94281.0,0.052982]
[1732109382415,0.00059175,94282.0,94281.0,0.052982]
[1732109383614,0.1,94300.0,94279.0,0.10096183]
[1732109383820,0.1,94300.0,94299.0,0.052972]
[1732109387106,0.1,94300.0,94294.0,0.10096183]
[1732109387310,0.1,94300.0,94299.0,0.052972]
[1732109388113,0.1,94300.0,94299.0,0.07534587]
[1732109395322,0.1,94300.0,94299.0,0.43614587]
[1732109395530,0.04818238,94300.0,94299.0,0.43614587]
[1732109396120,0.0726,94322.0,94299.0,0.8552277]
[1732109396321,0.0726,94322.0,94321.0,0.41376]
[1732109396627,0.052951,94336.0,94330.0,0.052955]
[1732109396816,0.052951,94336.0,94321.0,0.41376]
[1732109397018,0.3608,94339.0,94322.0,0.10096183]
[1732109397217,0.3608,94339.0,94336.0,0.052951]
[1732109397827,0.41375,94339.0,94336.0,0.052951]
[1732109398026,0.3608,94339.0,94329.0,0.3608]
[1732109398229,0.0691,94340.0,94329.0,0.46176183]
[1732109398420,0.0691,94340.0,94339.0,0.052949]
[1732109398724,0.00159078,94341.0,94340.0,0.052949]
[1732109398913,0.05295,94339.0,94330.0,0.052954]
[1732109399118,0.05295,94339.0,94336.0,0.052951]
[1732109399319,0.00159078,94341.0,94340.0,0.052949]
[1732109399715,0.00159078,94341.0,94329.0,0.38296049]
[1732109399716,0.052955,94330.0,94329.0,0.38296049]
[1732109400027,0.15391683,94330.0,94329.0,0.02216049]
[1732109400228,0.15391683,94330.0,94312.0,0.0049]
[1732109400229,0.052964,94313.0,94312.0,0.0049]
[1732109400533,1.96176183,94330.0,94307.0,0.052967]
[1732109400534,0.052967,94308.0,94307.0,0.052967]
[1732109400827,0.3608,94321.0,94305.0,0.3608]
[1732109400828,0.0705,94312.0,94305.0,0.36168]
[1732109401026,1.5,94311.0,94310.0,0.052965]
[1732109401525,1.5,94311.0,94305.0,0.36168]
[1732109401526,0.052968,94306.0,94305.0,0.02171043]
[1732109401729,0.052972,94300.0,94299.0,0.052972]
[1732109401930,0.10096183,94300.0,94293.0,0.02198047]
[1732109402131,0.56272366,94294.0,94266.0,0.331]
[1732109402331,0.10096183,94267.0,94266.0,0.331]
[1732109402627,0.10096183,94267.0,94249.0,0.02119125]
[1732109402628,0.053,94250.0,94249.0,0.02119125]
[1732109402828,0.10096183,94250.0,94249.0,0.02119125]
[1732109403230,0.052988,94272.0,94250.0,0.052999]
[1732109403528,0.3608,94272.0,94257.0,0.3608]
[1732109403725,0.3608,94272.0,94258.0,0.0664]
[1732109403927,0.4279,94283.0,94269.0,0.3608]
[1732109404229,0.10096183,94277.0,94269.0,0.3608]
[1732109404429,0.10096183,94277.0,94275.0,0.052985]
[1732109404630,0.10096183,94277.0,94269.0,0.3608]
[1732109404631,0.413781,94283.0,94271.0,0.052988]
[1732109404821,0.413781,94283.0,94269.0,0.3608]
[1732109404822,0.052982,94282.0,94269.0,0.3608]
[1732109405022,0.3608,94283.0,94269.0,0.3608]
[1732109405225,0.46176183,94283.0,94272.0,0.052987]
[1732109405429,0.3608,94283.0,94269.0,0.38246825]
[1732109405630,0.00159181,94286.0,94285.0,0.05298]
[1732109406125,0.46176183,94305.0,94282.0,0.10096183]
[1732109406426,0.46176183,94305.0,94295.0,0.052974]
[1732109406728,0.3608,94296.0,94295.0,0.052974]
[1732109406927,0.3608,94305.0,94304.0,0.052969]
[1732109407834,0.15391883,94326.0,94317.0,0.052962]
[1732109408036,0.10096183,94326.0,94307.0,0.00010913]
[1732109408240,0.3608,94318.0,94316.0,0.052962]
[1732109408432,0.3608,94318.0,94307.0,0.00010913]
[1732109408635,0.3608,94328.0,94314.0,0.10096183]
[1732109408836,0.3608,94328.0,94327.0,0.052956]
[1732109409033,0.413749,94340.0,94328.0,0.052955]
[1732109409341,0.3608,94332.0,94331.0,0.052954]
[1732109410139,0.3608,94332.0,94317.0,0.24132183]
[1732109410140,0.3608,94340.0,94317.0,0.24132183]
[1732109410458,0.3608,94340.0,94324.0,0.10096183]
[1732109410940,0.3608,94340.0,94339.0,0.052949]
[1732109411235,0.00159078,94341.0,94339.0,0.052949]
[1732109411827,0.00159078,94341.0,94339.0,0.07441675]
[1732109413139,0.3608,94351.0,94341.0,0.052948]
[1732109413337,0.3608,94351.0,94350.0,0.052943]
[1732109414732,0.3608,94367.0,94346.0,0.51441928]
[1732109414933,0.3608,94367.0,94354.0,0.15361928]
[1732109415138,0.3608,94367.0,94362.0,0.052936]
[1732109415337,0.3608,94367.0,94354.0,0.15361928]
[1732109415338,0.3608,94367.0,94363.0,0.052936]
[1732109416342,0.3608,94367.0,94343.0,0.3608]
[1732109416538,0.3608,94359.0,94343.0,0.3608]
[1732109416732,0.052943,94352.0,94343.0,0.3608]
[1732109417048,0.05294,94357.0,94350.0,0.052943]
[1732109417229,0.3608,94367.0,94346.0,0.02118328]
[1732109417428,0.3608,94357.0,94346.0,0.02118328]
[1732109417935,0.3608,94357.0,94351.0,0.052942]
[1732109418136,0.3608,94357.0,94346.0,0.02118328]
[1732109418341,0.3608,94357.0,94352.0,0.052942]
[1732109418528,0.3608,94357.0,94346.0,0.02118328]
[1732109418851,0.3608,94367.0,94346.0,0.02118328]
[1732109419144,0.052939,94359.0,94352.0,0.052942]
[1732109419436,0.052936,94363.0,94346.0,0.02118328]
[1732109419628,0.052936,94363.0,94355.0,0.052941]
[1732109419834,0.3608,94367.0,94346.0,0.02118328]
[1732109420027,0.052936,94364.0,94353.0,0.052941]
[1732109420233,0.3608,94367.0,94353.0,0.052941]
[1732109420435,0.052942,94352.0,94342.0,0.052947]
[1732109420928,0.052943,94351.0,94342.0,0.052947]
[1732109421132,0.3608,94358.0,94335.0,0.2448173]
[1732109421133,0.3608,94358.0,94336.0,0.052951]
[1732109421335,0.052941,94355.0,94342.0,0.1402]
[1732109421533,0.3608,94361.0,94342.0,0.1402]
[1732109421534,0.3608,94352.0,94351.0,0.052943]
[1732109421734,0.3608,94361.0,94344.0,0.15361928]
[1732109421735,1.5,94361.0,94356.0,0.05294]
[1732109421936,1.5,94361.0,94345.0,0.1402]
[1732109422135,0.052935,94365.0,94353.0,0.15361928]
[1732109422334,0.3608,94371.0,94358.0,0.052938]
[1732109422635,0.3608,94371.0,94354.0,0.052941]
[1732109422636,0.052935,94366.0,94354.0,0.052941]
[1732109422831,0.052935,94366.0,94359.0,0.052938]
[1732109423033,0.052935,94366.0,94353.0,0.1752206]
[1732109423034,0.052935,94366.0,94354.0,0.052941]
[1732109423233,0.052935,94366.0,94353.0,0.1752206]
[1732109423234,0.3608,94361.0,94360.0,0.052938]
[1732109424356,0.052938,94360.0,94357.0,0.052939]
[1732109424554,0.3608,94361.0,94358.0,0.052939]
[1732109424841,0.3608,94361.0,94357.0,0.052939]
[1732109425043,0.3608,94361.0,94351.0,0.1402]
[1732109425243,0.3608,94361.0,94360.0,0.052938]
[1732109427045,0.3608,94371.0,94352.0,0.052942]
[1732109427247,0.3608,94371.0,94370.0,0.052932]
[1732109427448,0.3608,94371.0,94359.0,0.052938]
[1732109427651,0.3608,94370.0,94363.0,0.052936]
[1732109427945,0.052933,94368.0,94354.0,0.1402]
[1732109428141,0.0667,94377.0,94354.0,0.1402]
[1732109428337,0.413735,94365.0,94363.0,0.052936]
[1732109428738,0.052935,94365.0,94363.0,0.052936]
[1732109428946,0.413735,94365.0,94363.0,0.052936]
[1732109429358,0.052938,94360.0,94359.0,0.052938]
[1732109430158,0.3608,94365.0,94364.0,0.052935]
[1732109431145,0.052929,94376.0,94372.0,0.052931]
[1732109431349,0.3608,94373.0,94372.0,0.052931]
[1732109431644,0.41373,94373.0,94372.0,0.052931]
[1732109432353,0.052932,94371.0,94370.0,0.052931]
[1732109432957,0.052932,94371.0,94360.0,0.052937]
[1732109432958,0.052936,94365.0,94364.0,0.052935]
[1732109433162,0.3608,94365.0,94357.0,0.02118368]
[1732109433367,0.3608,94365.0,94350.0,0.36666]
[1732109433368,0.052943,94351.0,94350.0,0.00096]
[1732109433661,0.052946,94346.0,94337.0,0.05295]
[1732109433846,0.3608,94351.0,94337.0,0.05295]
[1732109433847,0.052952,94338.0,94337.0,0.05295]
[1732109434047,0.3608,94343.0,94342.0,0.052948]
[1732109434553,0.3608,94352.0,94351.0,0.052943]
[1732109435756,0.36136001,94361.0,94360.0,0.052938]
[1732109435958,0.067,94367.0,94351.0,0.07449424]
[1732109435959,0.067,94367.0,94366.0,0.052934]
[1732109436653,0.3608,94372.0,94353.0,0.052941]
[1732109436857,0.413731,94372.0,94371.0,0.052932]
[1732109437047,0.413731,94372.0,94357.0,0.15355223]
[1732109437048,0.3608,94372.0,94357.0,0.10061323]
[1732109437246,0.052933,94370.0,94369.0,0.052932]
[1732109438646,0.3608,94372.0,94358.0,0.052939]
[1732109438853,0.3608,94372.0,94371.0,0.052932]
[1732109439254,0.413731,94372.0,94371.0,0.052932]
[1732109439465,0.3608,94372.0,94371.0,0.052932]
[1732109439964,0.3608,94372.0,94371.0,0.07489226]
[1732109440660,0.413731,94372.0,94371.0,0.07489226]
[1732109441357,0.413731,94372.0,94358.0,0.10061323]
[1732109441358,0.774531,94372.0,94358.0,0.10061323]
[1732109441556,0.774531,94372.0,94358.0,0.15355223]
[1732109441557,0.413738,94359.0,94358.0,0.15355223]